[Event "10th Uppsala Young Champions 2023"]
[Site "Uppsala"]
[Date "2023.10.31"]
[Round "7.5"]
[White "Ljung, Harald"]
[Black "Morell, Ludvig"]
[Result "1/2-1/2"]
[ECO "D02"]
[WhiteElo "2159"]
[BlackElo "2017"]
[Annotator "RC"]
[PlyCount "177"]
[EventDate "2023.10.27"]
[EventType "swiss"]
[EventCountry "SWE"]
[SourceTitle "playchess.com"]
[Source "ChessBase"]
[SourceQuality "1"]
[TimeControl "5400+30"]

1. d4 {[%emt 0:00:12]} Nf6 {[%emt 0:00:05]} 2. Nf3 {[%emt 0:00:23]} e6 {[%emt 0:00:06]} 3. g3 {[%emt 0:02:21]} c5 {[%emt 0:00:07]} 4. c3 {[%emt 0:00:27]} d5 {[%emt 0:02:40]} 5. Bg2 {[%emt 0:00:43]} Nc6 {[%emt 0:00:41]} 6. O-O {[%emt 0:00:11]} Bd6 {[%emt 0:06:04]} 7. Nbd2 {[%emt 0:02:58]} O-O {[%emt 0:01:06]} 8. dxc5 {[%emt 0:01:11]} Bxc5 {[%emt 0:00:15]} 9. Nb3 {[%emt 0:00:10]} Bd6 {[%emt 0:02:52]} 10. a4 {[%emt 0:01:51]} Ne5 {[%emt 0:09:23]} 11. Nxe5 {[%emt 0:03:07]} Bxe5 {[%emt 0:00:35]} 12. Be3 {[%emt 0:00:21]} Qc7 {[%emt 0:06:26]} 13. Qd3 {[%emt 0:08:21]} Bd7 {[%emt 0:03:02]} 14. Rfd1 {[%emt 0:01:11]} b5 {[%emt 0:05:51]} 15. axb5 {[%emt 0:02:36]} Rfb8 {[%emt 0:00:08]} 16. Ra5 {[%emt 0:12:24]} a6 {[%emt 0:00:24]} 17. Rda1 {[%emt 0:00:44]} Bxb5 {[%emt 0:00:55]} 18. Qc2 {[%emt 0:01:46]} Bxe2 {[%emt 0:09:32]} 19. Qxe2 {[%emt 0:02:13]} Rxb3 {[%emt 0:00:10]} 20. Rxa6 {[%emt 0:00:26]} Rab8 {[%emt 0:02:23]} 21. Ra8 {[%emt 0:00:35]} Bd6 {[%emt 0:02:29]} 22. Rxb8+ {[%emt 0:10:13]} Qxb8 {[%emt 0:06:29]} 23. Bc1 {[%emt 0:00:27]} Bc5 {[%emt 0:02:01]} 24. Bf3 {[%emt 0:04:55]} Nd7 {[%emt 0:04:07]} 25. Qa6 {[%emt 0:07:19]} Ne5 {[%emt 0:07:50]} 26. Be2 {[%emt 0:00:47]} d4 {[%emt 0:08:18]} 27. Ra5 {[%emt 0:04:17]} Rb6 {[%emt 0:04:30]} 28. Qa8 {[%emt 0:00:43]} Nd7 {[%emt 0:00:04]} 29. Bf4 {[%emt 0:08:40]} Qf8 {[%emt 0:06:04]} 30. b4 {[%emt 0:07:03]} Bd6 {[%emt 0:01:46]} 31. Bxd6 {[%emt 0:03:06]} Rxd6 {[%emt 0:00:02]} 32. c4 {[%emt 0:00:19]} d3 {[%emt 0:00:54]} 33. Bd1 {[%emt 0:00:05]} Ne5 {[%emt 0:01:54]} 34. Qxf8+ {[%emt 0:00:55]} Kxf8 {[%emt 0:00:06]} 35. Rxe5 {[%emt 0:00:05]} Rd4 {[%emt 0:00:04]} 36. Re3 {[%emt 0:06:54]} Rxc4 {[%emt 0:00:08]} 37. Rxd3 {[%emt 0:00:15]} Rxb4 {[%emt 0:00:05]} 38. Kg2 {[%emt 0:00:04]} Rb7 {[%emt 0:00:16]} 39. Ra3 {[%emt 0:00:11]} g6 {[%emt 0:10:08]} 40. Bf3 {[%emt 0:00:04]} Rc7 {[%emt 0:00:00]} 41. h4 {[%emt 0:00:17]} h5 {[%emt 0:00:00]} 42. Be4 {[%emt 0:00:18]} Ke7 {[%emt 0:00:00]} 43. Rb3 {[%emt 0:00:09]} Kf6 {[%emt 0:00:00]} 44. Kf3 {[%emt 0:00:08]} Ra7 {[%emt 0:00:00]} 45. Kf4 {[%emt 0:00:36]} Rc7 {[%emt 0:00:00]} 46. f3 {[%emt 0:00:14]} Rc1 {[%emt 0:00:00]} 47. Rb1 {[%emt 0:01:20]} Rc3 {[%emt 0:00:00]} 48. Rb5 {[%emt 0:01:03]} Rc1 {[%emt 0:00:00]} 49. g4 {[%emt 0:01:51]} hxg4 {[%emt 0:00:00]} 50. fxg4 {[%emt 0:01:02]} Rf1+ {[%emt 0:00:00]} 51. Bf3 {[%emt 0:00:33]} Rf2 {[%emt 0:00:00]} 52. Kg3 {[%emt 0:00:27]} Rf1 {[%emt 0:00:00]} 53. Rb7 {[%emt 0:00:17]} Rc1 {[%emt 0:00:00]} 54. Rb8 {[%emt 0:01:55]} Rc5 {[%emt 0:00:00]} 55. Rg8 {[%emt 0:00:46]} Ra5 {[%emt 0:00:21]} 56. Kf4 {[%emt 0:01:53]} Ra4+ {[%emt 0:00:07]} 57. Be4 {[%emt 0:01:04]} Ra3 {[%emt 0:00:04]} 58. g5+ {[%emt 0:01:12]} Ke7 {[%emt 0:00:06]} 59. Ra8 {[%emt 0:00:05]} Rh3 {[%emt 0:01:22]} 60. Kg4 {[%emt 0:00:35]} Re3 {[%emt 0:00:09]} 61. Bf3 {[%emt 0:00:15]} Rb3 {[%emt 0:00:35]} 62. Ra7+ {[%emt 0:00:13]} Kf8 {[%emt 0:00:06]} 63. Be4 {[%emt 0:00:28]} Rb4 {[%emt 0:01:03]} 64. Kf4 {[%emt 0:00:07]} Rb5 {[%emt 0:01:37]} 65. Ra8+ {[%emt 0:00:32]} Kg7 {[%emt 0:00:44]} 66. Ra7 {[%emt 0:00:12]} Kf8 {[%emt 0:00:15]} 67. Ra1 {[%emt 0:00:07]} Kg7 {[%emt 0:00:49]} 68. Rh1 {[%emt 0:00:14]} Rb4 {[%emt 0:00:20]} 69. h5 {[%emt 0:00:47]} gxh5 {[%emt 0:00:23]} 70. Rxh5 {[%emt 0:00:01]} f5 {[%emt 0:00:18]} 71. gxf6+ {[%emt 0:00:29]} Kxf6 {[%emt 0:00:04]} 72. Rh6+ {[%emt 0:00:20]} Ke7 {[%emt 0:00:24]} 73. Rh5 {[%emt 0:00:40]} Kf6 {[%emt 0:00:17]} 74. Ke3 {[%emt 0:00:20]} Rb3+ {[%emt 0:00:29]} 75. Bd3 {[%emt 0:00:12]} Rb4 {[%emt 0:00:09]} 76. Rc5 {[%emt 0:00:07]} Rb6 {[%emt 0:01:52]} 77. Bc4 {[%emt 0:00:25]} Rd6 {[%emt 0:00:25]} 78. Ke4 {[%emt 0:00:25]} Rd1 {[%emt 0:00:22]} 79. Rc6 {[%emt 0:00:14]} Re1+ {[%emt 0:00:19]} 80. Kd4 {[%emt 0:00:23]} Kf5 {[%emt 0:00:12]} 81. Rc8 {[%emt 0:00:15]} Kf6 {[%emt 0:00:36]} 82. Kc5 {[%emt 0:00:38]} Ke7 {[%emt 0:00:45]} 83. Rh8 {[%emt 0:00:20]} Re5+ {[%emt 0:02:11]} 84. Kd4 {[%emt 0:00:12]} Re1 {[%emt 0:00:06]} 85. Bd3 {[%emt 0:00:08]} Kd6 {[%emt 0:00:28]} 86. Ra8 {[%emt 0:00:34]} Rh1 {[%emt 0:01:23]} 87. Ra6+ {[%emt 0:01:42]} Ke7 {[%emt 0:00:11]} 88. Ra2 {[%emt 0:02:09]} Kd6 {[%emt 0:00:20]} 89. Ke4 1/2-1/2

[Event "10th Uppsala Young Champions 2023"]
[Site "Uppsala"]
[Date "2023.10.31"]
[Round "7.6"]
[White "Grahn, Vidar"]
[Black "Mai, Alexander Oliver"]
[Result "1/2-1/2"]
[ECO "A62"]
[WhiteElo "2133"]
[BlackElo "2118"]
[Annotator "RC"]
[PlyCount "137"]
[EventDate "2023.10.27"]
[EventType "swiss"]
[EventCountry "SWE"]
[SourceTitle "playchess.com"]
[Source "ChessBase"]
[SourceQuality "1"]
[TimeControl "5400+30"]

1. d4 {[%emt 0:00:03]} Nf6 {[%emt 0:00:08]} 2. c4 {[%emt 0:00:03]} e6 {[%emt 0:00:06]} 3. g3 {[%emt 0:00:03]} c5 {[%emt 0:00:05]} 4. d5 {[%emt 0:00:05]} exd5 {[%emt 0:00:04]} 5. cxd5 {[%emt 0:00:02]} d6 {[%emt 0:00:07]} 6. Nc3 {[%emt 0:00:07]} g6 {[%emt 0:00:05]} 7. Bg2 {[%emt 0:00:06]} Bg7 {[%emt 0:00:06]} 8. Nf3 {[%emt 0:00:05]} O-O {[%emt 0:00:05]} 9. O-O {[%emt 0:00:02]} Re8 {[%emt 0:00:18]} 10. Bf4 {[%emt 0:00:05]} h6 {[%emt 0:00:06]} 11. Qc1 {[%emt 0:00:13]} g5 {[%emt 0:00:03]} 12. Be3 {[%emt 0:00:23]} Nbd7 {[%emt 0:00:07]} 13. h4 {[%emt 0:01:07]} Ng4 {[%emt 0:00:11]} 14. Bd2 {[%emt 0:02:10]} f6 {[%emt 0:00:13]} 15. a4 {[%emt 0:08:47]} b6 {[%emt 0:04:59]} 16. Re1 {[%emt 0:05:37]} a6 {[%emt 0:02:49]} 17. Qc2 {[%emt 0:12:12]} Nf8 {[%emt 0:06:36]} 18. e4 {[%emt 0:05:47]} Ra7 {[%emt 0:03:04]} 19. h5 {[%emt 0:05:17]} Qe7 {[%emt 0:05:49]} 20. Nh2 {[%emt 0:06:01]} Nxh2 {[%emt 0:08:07]} 21. Kxh2 {[%emt 0:00:14]} Qf7 {[%emt 0:00:25]} 22. Qd1 {[%emt 0:00:31]} g4 {[%emt 0:00:06]} 23. Rh1 {[%emt 0:01:48]} Qxh5+ {[%emt 0:00:17]} 24. Kg1 {[%emt 0:00:06]} Qg6 {[%emt 0:00:57]} 25. Ne2 {[%emt 0:01:07]} Nh7 {[%emt 1:08:07]} 26. Nf4 {[%emt 0:04:05]} Qf7 {[%emt 0:00:00]} 27. Qb3 {[%emt 0:47:54]} Ng5 {[%emt 0:00:00]} 28. Nh5 {[%emt 0:00:00]} Rb7 {[%emt 0:00:00]} 29. Bxg5 {[%emt 0:00:00]} fxg5 {[%emt 0:00:00]} 30. Nxg7 {[%emt 0:00:00]} Qxg7 {[%emt 0:00:00]} 31. Bf1 {[%emt 0:00:00]} Rxe4 {[%emt 0:00:00]} 32. Bxa6 {[%emt 0:00:00]} Rb4 {[%emt 0:00:00]} 33. Qc3 {[%emt 0:00:00]} Rxb2 {[%emt 0:00:00]} 34. Qxg7+ {[%emt 0:00:00]} Kxg7 {[%emt 0:00:00]} 35. Bxb7 {[%emt 0:00:00]} Bxb7 {[%emt 0:00:00]} 36. Rd1 {[%emt 0:00:00]} c4 {[%emt 0:00:00]} 37. Rh2 {[%emt 0:00:00]} c3 {[%emt 0:00:00]} 38. f4 {[%emt 0:00:00]} Bxd5 {[%emt 0:05:04]} 39. Rxb2 {[%emt 0:00:00]} cxb2 {[%emt 0:00:01]} 40. Rb1 {[%emt 0:00:00]} gxf4 {[%emt 0:01:48]} 41. gxf4 {[%emt 0:00:00]} Bb3 {[%emt 0:00:33]} 42. Rxb2 {[%emt 0:00:00]} Bxa4 {[%emt 0:00:01]} 43. Rxb6 {[%emt 0:00:00]} Kf6 {[%emt 0:00:26]} 44. Rxd6+ {[%emt 0:00:00]} Kf5 {[%emt 0:00:01]} 45. Kf2 {[%emt 0:00:00]} Be8 {[%emt 0:00:31]} 46. Kg3 {[%emt 0:00:00]} h5 {[%emt 0:00:10]} 47. Rd1 {[%emt 0:00:00]} Bg6 {[%emt 0:02:25]} 48. Rd5+ {[%emt 0:00:00]} Ke6 {[%emt 0:00:00]} 49. Ra5 {[%emt 0:00:00]} Kf6 {[%emt 0:00:00]} 50. Kh4 {[%emt 0:00:00]} Bf7 {[%emt 0:00:00]} 51. Rc5 {[%emt 0:00:00]} Bg6 {[%emt 0:00:16]} 52. Kg3 {[%emt 0:00:00]} Bf5 {[%emt 0:00:16]} 53. Rc6+ {[%emt 0:00:00]} Be6 {[%emt 0:01:32]} 54. Ra6 {[%emt 0:00:00]} Ke7 {[%emt 0:00:55]} 55. Kh4 {[%emt 0:00:00]} Kf6 {[%emt 0:00:14]} 56. Ra5 {[%emt 0:00:00]} Bf7 {[%emt 0:00:16]} 57. Rg5 {[%emt 0:00:00]} Bg6 {[%emt 0:00:41]} 58. Ra5 {[%emt 0:00:00]} Be8 {[%emt 0:00:31]} 59. Kg3 {[%emt 0:00:00]} Bf7 {[%emt 0:00:05]} 60. Rb5 {[%emt 0:00:00]} Be8 {[%emt 0:00:23]} 61. Rg5 {[%emt 0:00:00]} Bf7 {[%emt 0:00:18]} 62. Kf2 {[%emt 0:00:00]} Be8 {[%emt 0:00:08]} 63. Ke3 {[%emt 0:00:00]} Bf7 {[%emt 0:00:07]} 64. Ke4 {[%emt 0:00:00]} Bg6+ {[%emt 0:00:05]} 65. Ke3 {[%emt 0:00:00]} Bf7 {[%emt 0:00:05]} 66. Ra5 {[%emt 0:00:00]} Bg6 {[%emt 0:00:42]} 67. Ra6+ {[%emt 0:00:00]} Kf5 {[%emt 0:00:18]} 68. Ra5+ {[%emt 0:00:00]} Kf6 {[%emt 0:00:06]} 69. Rg5 {[%emt 0:00:00]} 1/2-1/2

[Event "10th Uppsala Young Champions 2023"]
[Site "Uppsala"]
[Date "2023.10.31"]
[Round "7.7"]
[White "Harish, Neeraj"]
[Black "Steiners, Emils"]
[Result "1-0"]
[ECO "C17"]
[WhiteElo "2076"]
[BlackElo "1914"]
[Annotator "NA RC"]
[PlyCount "67"]
[EventDate "2023.10.27"]
[EventType "swiss"]
[EventCountry "SWE"]
[SourceTitle "playchess.com"]
[Source "ChessBase"]
[SourceQuality "1"]
[TimeControl "5400+30"]

1. e4 {[%emt 0:00:03]} e6 {[%emt 0:00:03]} 2. d4 {[%emt 0:00:05]} d5 {[%emt 0:00:04]} 3. Nc3 {[%emt 0:00:10]} Bb4 {[%emt 0:00:06]} 4. e5 {[%emt 0:00:12]} c5 {[%emt 0:00:04]} 5. Bd2 {[%emt 0:00:07]} Ne7 {[%emt 0:01:36]} 6. a3 {[%emt 0:00:33]} cxd4 {[%emt 0:04:56]} 7. axb4 {[%emt 0:00:19]} dxc3 {[%emt 0:00:09]} 8. Bxc3 {[%emt 0:00:04]} O-O {[%emt 0:04:50]} 9. Nf3 {[%emt 0:01:33]} f6 {[%emt 0:14:16]} 10. Bd3 {[%emt 0:08:07]} Nd7 {[%emt 0:07:58]} 11. O-O {[%emt 0:05:58]} Nxe5 {[%emt 0:08:35]} 12. Nxe5 {[%emt 0:00:21]} fxe5 {[%emt 0:00:08]} 13. Bxe5 {[%emt 0:00:22]} Nf5 {[%emt 0:09:02]} 14. Qg4 {[%emt 0:05:13]} Qe7 {[%emt 0:06:55]} 15. b5 {[%emt 0:06:01]} Bd7 {[%emt 0:05:52]} 16. Qh3 {[%emt 0:05:32]} Qc5 {[%emt 0:07:26]} 17. g4 {[%emt 0:22:12]} Nh6 {[%emt 0:03:23]} 18. Qh5 {[%emt 0:00:23]} Qb4 {[%emt 0:08:37]} 19. f4 {[%emt 0:02:59]} Bxb5 {[%emt 0:06:09]} 20. Bxg7 {[%emt 0:01:05]} Kxg7 {[%emt 0:00:45]} 21. Qg5+ {[%emt 0:00:21]} Kh8 {[%emt 0:00:43]} 22. Bxb5 {[%emt 0:02:57]} Nxg4 {[%emt 0:03:03]} 23. Bd3 {[%emt 0:02:12]} Rg8 {[%emt 0:02:22]} 24. Qh4 {[%emt 0:00:17]} Qd4+ {[%emt 0:02:33]} 25. Kh1 {[%emt 0:00:19]} Rg7 {[%emt 0:01:16]} 26. Bxh7 {[%emt 0:03:01]} Rxh7 {[%emt 0:00:11]} 27. Qxg4 {[%emt 0:00:05]} Rg8 {[%emt 0:01:51]} 28. Qe2 {[%emt 0:00:19]} Qxb2 {[%emt 0:01:02]} 29. Rxa7 {[%emt 0:00:54]} Qg7 {[%emt 0:00:32]} 30. Rb1 {[%emt 0:04:22]} Rb8 {[%emt 0:00:30]} 31. Qxe6 {[%emt 0:01:01]} d4 {[%emt 0:00:30]} 32. Rbxb7 {[%emt 0:01:17]} Rxh2+ {[%emt 0:00:32]} 33. Kxh2 {[%emt 0:00:07]} Rxb7 {[%emt 0:00:09]} 34. Qc8+ {[%emt 0:00:12]} 1-0

[Event "10th Uppsala Young Champions 2023"]
[Site "Uppsala"]
[Date "2023.10.31"]
[Round "7.8"]
[White "Seiger, Vidar"]
[Black "Nilsson, Oliver"]
[Result "1-0"]
[ECO "A05"]
[WhiteElo "1908"]
[BlackElo "1933"]
[Annotator "RC"]
[PlyCount "127"]
[EventDate "2023.10.27"]
[EventType "swiss"]
[EventCountry "SWE"]
[SourceTitle "playchess.com"]
[Source "ChessBase"]
[SourceQuality "1"]
[TimeControl "5400+30"]

1. Nf3 {[%emt 0:00:10]} Nf6 {[%emt 0:00:17]} 2. g3 {[%emt 0:00:08]} g6 {[%emt 0:00:06]} 3. b4 {[%emt 0:00:24]} Bg7 {[%emt 0:00:14]} 4. Bb2 {[%emt 0:00:04]} O-O {[%emt 0:00:06]} 5. Bg2 {[%emt 0:00:07]} d5 {[%emt 0:00:57]} 6. O-O {[%emt 0:00:22]} Qd6 {[%emt 0:01:45]} 7. a3 {[%emt 0:01:12]} a5 {[%emt 0:00:33]} 8. c3 {[%emt 0:02:06]} Nbd7 {[%emt 0:02:06]} 9. d3 {[%emt 0:01:26]} e5 {[%emt 0:00:22]} 10. Qc2 {[%emt 0:04:10]} Re8 {[%emt 0:07:09]} 11. e4 {[%emt 0:02:31]} dxe4 {[%emt 0:14:51]} 12. dxe4 {[%emt 0:00:53]} Qc6 {[%emt 0:02:53]} 13. Nbd2 {[%emt 0:04:58]} Nb6 {[%emt 0:15:15]} 14. c4 {[%emt 0:03:04]} Ng4 {[%emt 0:06:23]} 15. h3 {[%emt 0:04:20]} Nh6 {[%emt 0:00:15]} 16. b5 {[%emt 0:04:31]} Qc5 {[%emt 0:03:26]} 17. a4 {[%emt 0:01:18]} Nd7 {[%emt 0:06:03]} 18. Ba3 {[%emt 0:04:59]} Qa7 {[%emt 0:00:40]} 19. c5 {[%emt 0:07:59]} c6 {[%emt 0:00:17]} 20. b6 {[%emt 0:00:45]} Qb8 {[%emt 0:00:27]} 21. Rad1 {[%emt 0:06:27]} Bf8 {[%emt 0:00:48]} 22. Qc3 {[%emt 0:05:01]} f6 {[%emt 0:01:36]} 23. Rfe1 {[%emt 0:02:13]} Be7 {[%emt 0:02:21]} 24. Qe3 {[%emt 0:06:34]} Nf7 {[%emt 0:00:17]} 25. Kh2 {[%emt 0:09:23]} Nd8 {[%emt 0:00:16]} 26. Nc4 {[%emt 0:01:30]} Ne6 {[%emt 0:03:10]} 27. Nd6 {[%emt 0:00:33]} Rd8 {[%emt 0:00:34]} 28. Nxc8 {[%emt 0:07:23]} Qxc8 {[%emt 0:00:21]} 29. Rc1 {[%emt 0:00:23]} Nb8 {[%emt 0:01:34]} 30. h4 {[%emt 0:01:18]} Na6 {[%emt 0:02:12]} 31. Bh3 {[%emt 0:00:42]} Nb4 {[%emt 0:01:18]} 32. Red1 {[%emt 0:01:42]} Rxd1 {[%emt 0:04:35]} 33. Rxd1 {[%emt 0:00:04]} Kg7 {[%emt 0:00:26]} 34. Qd2 {[%emt 0:03:26]} Kf7 {[%emt 0:03:06]} 35. Bxb4 {[%emt 0:00:53]} axb4 {[%emt 0:00:19]} 36. Qxb4 {[%emt 0:00:26]} Bf8 {[%emt 0:01:24]} 37. Nd2 {[%emt 0:01:38]} Qd7 {[%emt 0:04:43]} 38. Bg4 {[%emt 0:03:34]} Qd4 {[%emt 0:01:29]} 39. Qc4 {[%emt 0:05:03]} f5 {[%emt 0:00:47]} 40. exf5 {[%emt 0:00:51]} gxf5 {[%emt 0:01:02]} 41. Bxf5 {[%emt 0:00:18]} Qxc4 {[%emt 0:01:50]} 42. Nxc4 {[%emt 0:00:02]} Nxc5 {[%emt 0:00:11]} 43. a5 {[%emt 0:02:07]} h6 {[%emt 0:00:36]} 44. Bc2 {[%emt 0:01:07]} Ke6 {[%emt 0:00:12]} 45. f3 {[%emt 0:00:40]} Be7 {[%emt 0:00:19]} 46. Kh3 {[%emt 0:00:43]} Na6 {[%emt 0:02:11]} 47. Re1 {[%emt 0:00:45]} Bf6 {[%emt 0:00:40]} 48. f4 {[%emt 0:00:22]} Kd5 {[%emt 0:00:15]} 49. Nxe5 {[%emt 0:00:57]} Nc5 {[%emt 0:01:07]} 50. Rd1+ {[%emt 0:00:19]} Ke6 {[%emt 0:00:08]} 51. Nc4 {[%emt 0:00:22]} Bc3 {[%emt 0:00:27]} 52. f5+ {[%emt 0:00:21]} Ke7 {[%emt 0:00:11]} 53. g4 {[%emt 0:00:31]} Bxa5 {[%emt 0:00:26]} 54. Ra1 {[%emt 0:00:11]} Rd8 {[%emt 0:00:46]} 55. Rxa5 {[%emt 0:00:15]} Rd5 {[%emt 0:00:11]} 56. g5 {[%emt 0:00:36]} hxg5 {[%emt 0:00:09]} 57. hxg5 {[%emt 0:00:03]} Nd7 {[%emt 0:00:14]} 58. Rxd5 {[%emt 0:00:14]} cxd5 {[%emt 0:00:04]} 59. Na5 {[%emt 0:00:20]} Nxb6 {[%emt 0:00:12]} 60. Nxb7 {[%emt 0:00:04]} Nc4 {[%emt 0:00:13]} 61. Nc5 {[%emt 0:00:40]} d4 {[%emt 0:00:21]} 62. f6+ {[%emt 0:01:20]} Ke8 {[%emt 0:01:34]} 63. Bg6+ {[%emt 0:00:51]} Kd8 {[%emt 0:00:31]} 64. Ne6+ {[%emt 0:00:17]} 1-0

[Event "10th Uppsala Young Champions 2023"]
[Site "Uppsala"]
[Date "2023.10.31"]
[Round "7.9"]
[White "Valcu, Lavinia"]
[Black "Morell, Oscar"]
[Result "0-1"]
[ECO "E05"]
[WhiteElo "1990"]
[BlackElo "1942"]
[Annotator "RC"]
[PlyCount "120"]
[EventDate "2023.10.27"]
[EventType "swiss"]
[EventCountry "SWE"]
[SourceTitle "playchess.com"]
[Source "ChessBase"]
[SourceQuality "1"]
[TimeControl "5400+30"]

1. d4 {[%emt 0:00:02]} d5 {[%emt 0:00:05]} 2. c4 {[%emt 0:00:07]} e6 {[%emt 0:00:08]} 3. Nf3 {[%emt 0:00:05]} Nf6 {[%emt 0:00:13]} 4. g3 {[%emt 0:00:04]} dxc4 {[%emt 0:03:09]} 5. Bg2 {[%emt 0:00:07]} Be7 {[%emt 0:01:47]} 6. O-O {[%emt 0:00:16]} O-O {[%emt 0:00:28]} 7. Qc2 {[%emt 0:00:06]} a6 {[%emt 0:02:29]} 8. a4 {[%emt 0:00:08]} Bd7 {[%emt 0:17:45]} 9. Rd1 {[%emt 0:00:13]} Bc6 {[%emt 0:00:29]} 10. Nc3 {[%emt 0:00:11]} Qe8 {[%emt 0:06:26]} 11. e4 {[%emt 0:09:15]} b5 {[%emt 0:02:40]} 12. d5 {[%emt 0:14:05]} Bb7 {[%emt 0:09:04]} 13. dxe6 {[%emt 0:05:43]} fxe6 {[%emt 0:02:48]} 14. Bh3 {[%emt 0:16:49]} b4 {[%emt 0:16:05]} 15. Bxe6+ {[%emt 0:03:20]} Kh8 {[%emt 0:01:39]} 16. Ng5 {[%emt 0:02:56]} h6 {[%emt 0:03:09]} 17. e5 {[%emt 0:08:59]} hxg5 {[%emt 0:01:05]} 18. exf6 {[%emt 0:00:16]} Bxf6 {[%emt 0:02:48]} 19. Qf5 {[%emt 0:04:15]} Qh5 {[%emt 0:02:42]} 20. g4 {[%emt 0:02:52]} Qh3 {[%emt 0:06:07]} 21. Ne4 {[%emt 0:05:18]} Be7 {[%emt 0:07:39]} 22. Qg6 {[%emt 0:02:39]} Bd6 {[%emt 0:02:31]} 23. Rxd6 {[%emt 0:04:00]} cxd6 {[%emt 0:01:57]} 24. Be3 {[%emt 0:05:14]} Nd7 {[%emt 0:03:48]} 25. Bxd7 {[%emt 0:05:19]} Rf6 {[%emt 0:00:14]} 26. Qh5+ {[%emt 0:01:40]} Qxh5 {[%emt 0:00:01]} 27. gxh5 {[%emt 0:00:09]} Bxe4 {[%emt 0:00:04]} 28. Bxg5 {[%emt 0:00:37]} Rf7 {[%emt 0:01:50]} 29. Be6 {[%emt 0:00:19]} Rc7 {[%emt 0:00:19]} 30. Re1 {[%emt 0:01:41]} d5 {[%emt 0:00:48]} 31. Bf4 {[%emt 0:00:40]} Rc6 {[%emt 0:02:29]} 32. Bd7 {[%emt 0:01:08]} Rf6 {[%emt 0:00:35]} 33. Bg5 {[%emt 0:02:58]} Rf3 {[%emt 0:00:33]} 34. Be3 {[%emt 0:00:16]} Rd8 {[%emt 0:01:43]} 35. Bg4 {[%emt 0:00:14]} Rf7 {[%emt 0:00:51]} 36. Rd1 {[%emt 0:02:18]} Bf3 {[%emt 0:00:47]} 37. Bxf3 {[%emt 0:00:09]} Rxf3 {[%emt 0:00:02]} 38. Kg2 {[%emt 0:00:18]} Rf5 {[%emt 0:00:28]} 39. Bc5 {[%emt 0:01:18]} b3 {[%emt 0:01:04]} 40. Kg3 {[%emt 0:00:43]} Rxh5 {[%emt 0:00:21]} 41. f4 {[%emt 0:00:24]} Rf5 {[%emt 0:00:28]} 42. Kg4 {[%emt 0:00:08]} Rf7 {[%emt 0:00:37]} 43. f5 {[%emt 0:00:32]} Rfd7 {[%emt 0:01:02]} 44. Bd4 {[%emt 0:00:16]} Kg8 {[%emt 0:00:12]} 45. Kh5 {[%emt 0:00:42]} Kf7 {[%emt 0:00:33]} 46. h4 {[%emt 0:00:05]} Rh8+ {[%emt 0:00:26]} 47. Kg5 {[%emt 0:00:06]} Re8 {[%emt 0:00:12]} 48. f6 {[%emt 0:00:46]} g6 {[%emt 0:01:09]} 49. h5 {[%emt 0:00:44]} gxh5 {[%emt 0:00:22]} 50. Kxh5 {[%emt 0:00:11]} Rg8 {[%emt 0:00:38]} 51. Re1 {[%emt 0:00:28]} Rg3 {[%emt 0:00:33]} 52. Kh4 {[%emt 0:05:21]} Rd3 {[%emt 0:00:07]} 53. Bc3 {[%emt 0:00:00]} Rxc3 {[%emt 0:00:30]} 54. bxc3 {[%emt 0:00:00]} d4 {[%emt 0:00:41]} 55. cxd4 {[%emt 0:00:00]} c3 {[%emt 0:00:11]} 56. Kg5 {[%emt 0:00:00]} b2 {[%emt 0:00:23]} 57. Rh1 {[%emt 0:00:00]} Rd5+ {[%emt 0:00:35]} 58. Kf4 {[%emt 0:00:00]} c2 {[%emt 0:00:15]} 59. Ke4 {[%emt 0:00:00]} b1=Q {[%emt 0:00:41]} 60. Rh7+ {[%emt 0:00:00]} Kxf6 {[%emt 0:00:14]} 0-1

[Event "10th Uppsala Young Champions 2023"]
[Site "Uppsala"]
[Date "2023.10.31"]
[Round "7.10"]
[White "Tripathi, Pratyush"]
[Black "Ostensson, Julia"]
[Result "1/2-1/2"]
[ECO "E97"]
[WhiteElo "1801"]
[BlackElo "1878"]
[Annotator "NA RC"]
[PlyCount "121"]
[EventDate "2023.10.27"]
[EventType "swiss"]
[EventCountry "SWE"]
[SourceTitle "playchess.com"]
[Source "ChessBase"]
[SourceQuality "1"]
[TimeControl "5400+30"]

1. d4 {[%emt 0:00:34]} Nf6 {[%emt 0:00:05]} 2. c4 {[%emt 0:00:05]} g6 {[%emt 0:00:04]} 3. Nc3 {[%emt 0:00:05]} Bg7 {[%emt 0:00:05]} 4. e4 {[%emt 0:00:05]} d6 {[%emt 0:00:04]} 5. Be2 {[%emt 0:00:04]} O-O {[%emt 0:00:05]} 6. Be3 {[%emt 0:00:03]} e5 {[%emt 0:00:05]} 7. Nf3 {[%emt 0:00:07]} Ng4 {[%emt 0:00:22]} 8. Bg5 {[%emt 0:00:05]} f6 {[%emt 0:00:05]} 9. Bc1 {[%emt 0:00:05]} Nc6 {[%emt 0:00:06]} 10. O-O {[%emt 0:00:37]} f5 {[%emt 0:00:20]} 11. dxe5 {[%emt 0:00:05]} Ngxe5 {[%emt 0:00:38]} 12. Nxe5 {[%emt 0:00:26]} Bxe5 {[%emt 0:01:03]} 13. exf5 {[%emt 0:02:50]} Bxf5 {[%emt 0:03:05]} 14. Be3 {[%emt 0:00:08]} Be6 {[%emt 0:01:45]} 15. Qd2 {[%emt 0:05:40]} Qd7 {[%emt 0:15:09]} 16. Nd5 {[%emt 0:05:38]} Rf7 {[%emt 0:06:48]} 17. Rad1 {[%emt 0:06:15]} Ne7 {[%emt 0:04:56]} 18. Nxe7+ {[%emt 0:10:00]} Qxe7 {[%emt 0:00:09]} 19. Bd4 {[%emt 0:00:21]} Qf6 {[%emt 0:15:05]} 20. b3 {[%emt 0:05:55]} Bd7 {[%emt 0:05:19]} 21. Bf3 {[%emt 0:02:18]} Bc6 {[%emt 0:00:38]} 22. Bxc6 {[%emt 0:02:11]} bxc6 {[%emt 0:00:02]} 23. Bxe5 {[%emt 0:00:09]} Qxe5 {[%emt 0:00:06]} 24. Rfe1 {[%emt 0:00:09]} Qc5 {[%emt 0:01:17]} 25. Qe3 {[%emt 0:07:16]} Qxe3 {[%emt 0:07:15]} 26. Rxe3 {[%emt 0:00:09]} c5 {[%emt 0:00:32]} 27. f3 {[%emt 0:12:04]} Kf8 {[%emt 0:00:33]} 28. Rde1 {[%emt 0:00:08]} a5 {[%emt 0:00:38]} 29. a4 {[%emt 0:02:37]} Rb8 {[%emt 0:05:54]} 30. Kf2 {[%emt 0:02:02]} Rd7 {[%emt 0:06:17]} 31. R1e2 {[%emt 0:07:16]} Kf7 {[%emt 0:01:02]} 32. Ke1 {[%emt 0:00:16]} c6 {[%emt 0:04:08]} 33. Kd2 {[%emt 0:06:05]} Rbb7 {[%emt 0:14:51]} 34. Rd3 {[%emt 0:02:50]} Kf6 {[%emt 0:02:43]} 35. Re8 {[%emt 0:02:27]} d5 {[%emt 0:03:53]} 36. cxd5 {[%emt 0:04:41]} Rxd5 {[%emt 0:01:53]} 37. Rc8 {[%emt 0:13:50]} Rxd3+ {[%emt 0:00:45]} 38. Kxd3 {[%emt 0:00:04]} Rxb3+ {[%emt 0:00:06]} 39. Kc2 {[%emt 0:00:14]} Rb4 {[%emt 0:01:17]} 40. Rxc6+ {[%emt 0:00:24]} Kg7 {[%emt 0:00:06]} 41. Rxc5 {[%emt 0:00:23]} Rxa4 {[%emt 0:00:39]} 42. Kb3 {[%emt 0:03:12]} Ra1 {[%emt 0:00:55]} 43. Kb2 {[%emt 0:01:12]} Rg1 {[%emt 0:00:31]} 44. g3 {[%emt 0:00:40]} Rg2+ {[%emt 0:00:22]} 45. Rc2 {[%emt 0:00:40]} Rxc2+ {[%emt 0:01:19]} 46. Kxc2 {[%emt 0:00:03]} Kf6 {[%emt 0:00:00]} 47. Kb3 {[%emt 0:00:07]} Ke5 {[%emt 0:00:00]} 48. Ka4 {[%emt 0:00:17]} Kd4 {[%emt 0:00:00]} 49. Kxa5 {[%emt 0:00:35]} g5 {[%emt 0:00:19]} 50. Kb4 {[%emt 0:00:53]} Ke3 {[%emt 0:00:58]} 51. f4 {[%emt 0:00:11]} gxf4 {[%emt 0:00:04]} 52. gxf4 {[%emt 0:00:04]} Kxf4 {[%emt 0:00:08]} 53. Kc3 {[%emt 0:00:27]} h5 {[%emt 0:01:46]} 54. Kd2 {[%emt 0:00:14]} Kg4 {[%emt 0:00:40]} 55. Ke2 {[%emt 0:00:45]} Kh3 {[%emt 0:00:10]} 56. Kf1 {[%emt 0:00:12]} Kxh2 {[%emt 0:00:05]} 57. Kf2 {[%emt 0:00:04]} h4 {[%emt 0:00:22]} 58. Kf1 {[%emt 0:00:24]} Kh1 {[%emt 0:00:25]} 59. Kf2 {[%emt 0:00:06]} h3 {[%emt 0:00:12]} 60. Kf1 {[%emt 0:00:13]} Kh2 {[%emt 0:00:11]} 61. Kf2 {[%emt 0:00:07]} 1/2-1/2